[Event "Early-Titled-Tuesday-Blitz-July-09-2024"]
[Site "Chess.com"]
[Date "2024.07.09"]
[Round "1"]
[White "Senn71"]
[Black "Mikasinski"]
[Result "0-1"]
[WhiteElo "2397"]
[BlackElo "2708"]
[TimeControl "180+1"]
[EndTime "8:07:25 PDT"]
[Termination "Mikasinski won by resignation"]

1. e4 {[%clk 0:02:58.4]} 1... c5 {[%clk 0:02:51.5]} 2. Nf3 {[%clk 0:02:57.6]}
2... d6 {[%clk 0:02:49.9]} 3. d4 {[%clk 0:02:56.8]} 3... cxd4 {[%clk 0:02:49.3]}
4. Nxd4 {[%clk 0:02:57.7]} 4... Nf6 {[%clk 0:02:49.2]} 5. Nc3 {[%clk 0:02:56.7]}
5... g6 {[%clk 0:02:44.7]} 6. Be3 {[%clk 0:02:56.2]} 6... Bg7 {[%clk 0:02:42.6]}
7. f3 {[%clk 0:02:56.8]} 7... O-O {[%clk 0:02:42.1]} 8. Qd2 {[%clk 0:02:57.4]}
8... Nc6 {[%clk 0:02:42.1]} 9. O-O-O {[%clk 0:02:58]} 9... Bd7 {[%clk
0:02:42.4]} 10. h4 {[%clk 0:02:56.3]} 10... Rc8 {[%clk 0:02:42.5]} 11. h5 {[%clk
0:02:56.2]} 11... Nxh5 {[%clk 0:02:42.4]} 12. g4 {[%clk 0:02:56.3]} 12... Ng3
{[%clk 0:02:43]} 13. Rh3 {[%clk 0:02:50.4]} 13... Nxf1 {[%clk 0:02:42.7]} 14.
Rxf1 {[%clk 0:02:50.6]} 14... Ne5 {[%clk 0:02:43.4]} 15. Bh6 {[%clk 0:02:45.2]}
15... Nc4 {[%clk 0:02:43]} 16. Qd3 {[%clk 0:02:40]} 16... Nxb2 {[%clk
0:01:47.1]} 17. Kxb2 {[%clk 0:02:12]} 17... Qb6+ {[%clk 0:01:44.7]} 18. Kc1
{[%clk 0:02:10.3]} 18... Bxd4 {[%clk 0:01:18.1]} 19. Nd5 {[%clk 0:01:35.7]}
19... Qb2+ {[%clk 0:01:15.6]} 20. Kd1 {[%clk 0:01:25.3]} 20... Bb5 {[%clk
0:00:46]} 21. Nxe7+ {[%clk 0:00:41.4]} 21... Kh8 {[%clk 0:00:44.3]} 22. Bxf8
{[%clk 0:00:16.6]} 22... Rxf8 {[%clk 0:00:05.9]} 23. Qb3 {[%clk 0:00:07.6]}
23... Qxb3 {[%clk 0:00:04.4]} 24. axb3 {[%clk 0:00:08.2]} 24... Bxf1 {[%clk
0:00:04.3]} 25. Rh1 {[%clk 0:00:08.6]} 25... Bg2 {[%clk 0:00:03.9]} 26. Rh2
{[%clk 0:00:08.6]} 26... Bxf3+ {[%clk 0:00:04.3]} 27. Kd2 {[%clk 0:00:09.2]}
27... Bxg4 {[%clk 0:00:03.8]} 28. Nd5 {[%clk 0:00:09.2]} 28... Be5 {[%clk
0:00:04]} 29. Rg2 {[%clk 0:00:08.4]} 29... Be6 {[%clk 0:00:04.4]} 30. c4 {[%clk
0:00:08.2]} 30... h5 {[%clk 0:00:04.4]} 31. Ne3 {[%clk 0:00:07.5]} 31... Kg7
{[%clk 0:00:04.7]} 32. Kd3 {[%clk 0:00:06.7]} 32... h4 {[%clk 0:00:05.1]} 33.
Rg1 {[%clk 0:00:05.7]} 33... h3 {[%clk 0:00:05.5]} 34. Rh1 {[%clk 0:00:05.1]}
34... h2 {[%clk 0:00:05.9]} 35. Nf1 {[%clk 0:00:05.8]} 35... Rh8 {[%clk
0:00:05.3]} 36. b4 {[%clk 0:00:06.3]} 36... Rh3+ {[%clk 0:00:05.1]} 37. Kd2
{[%clk 0:00:06.1]} 37... Bxc4 {[%clk 0:00:05.5]} 0-1

[Event "Early-Titled-Tuesday-Blitz-July-09-2024"]
[Site "Chess.com"]
[Date "2024.07.09"]
[Round "1"]
[White "FARIZA2018"]
[Black "le-castor-faineant"]
[Result "1-0"]
[WhiteElo "2614"]
[BlackElo "2291"]
[TimeControl "180+1"]
[EndTime "8:07:25 PDT"]
[Termination "FARIZA2018 won on time"]

1. e4 {[%clk 0:03:00.9]} 1... e5 {[%clk 0:02:57.1]} 2. Nf3 {[%clk 0:03:00.8]}
2... Nf6 {[%clk 0:02:48.2]} 3. Nxe5 {[%clk 0:02:59.1]} 3... d6 {[%clk
0:02:47.7]} 4. Nf3 {[%clk 0:02:58.9]} 4... Nxe4 {[%clk 0:02:42.8]} 5. c4 {[%clk
0:02:56.9]} 5... c6 {[%clk 0:02:41.7]} 6. d4 {[%clk 0:02:56.8]} 6... d5 {[%clk
0:02:41.6]} 7. Bd3 {[%clk 0:02:49.5]} 7... Bb4+ {[%clk 0:02:35.7]} 8. Nbd2
{[%clk 0:02:48.1]} 8... O-O {[%clk 0:02:33.5]} 9. O-O {[%clk 0:02:47.6]} 9...
Nxd2 {[%clk 0:02:33.3]} 10. Bxd2 {[%clk 0:02:47.5]} 10... Bxd2 {[%clk
0:02:29.6]} 11. Qxd2 {[%clk 0:02:47.5]} 11... dxc4 {[%clk 0:02:28.6]} 12. Bxc4
{[%clk 0:02:46.3]} 12... Bg4 {[%clk 0:02:25.7]} 13. Ne5 {[%clk 0:02:33.9]} 13...
Bh5 {[%clk 0:02:24.5]} 14. Qb4 {[%clk 0:02:21.1]} 14... Qc7 {[%clk 0:02:03.3]}
15. Rfe1 {[%clk 0:02:02]} 15... b6 {[%clk 0:01:40.2]} 16. Rac1 {[%clk
0:01:57.4]} 16... c5 {[%clk 0:01:29.8]} 17. dxc5 {[%clk 0:01:49.3]} 17... bxc5
{[%clk 0:01:27.8]} 18. Qb5 {[%clk 0:01:43.8]} 18... a6 {[%clk 0:01:24]} 19. Qa4
{[%clk 0:01:35.6]} 19... Ra7 {[%clk 0:01:10.5]} 20. Rc3 {[%clk 0:01:18.7]} 20...
Nd7 {[%clk 0:00:44.7]} 21. Nxd7 {[%clk 0:01:11.5]} 21... Qxd7 {[%clk 0:00:45.6]}
22. Qxd7 {[%clk 0:01:11.7]} 22... Rxd7 {[%clk 0:00:46.4]} 23. Bxa6 {[%clk
0:01:12.1]} 23... Rc7 {[%clk 0:00:41.3]} 24. Bc4 {[%clk 0:01:10.5]} 24... Rb8
{[%clk 0:00:37]} 25. b3 {[%clk 0:01:10.5]} 25... Kf8 {[%clk 0:00:36.6]} 26. Rce3
{[%clk 0:01:09.9]} 26... f6 {[%clk 0:00:32.4]} 27. Rh3 {[%clk 0:01:02.5]} 27...
Bg6 {[%clk 0:00:30.7]} 28. Rc1 {[%clk 0:00:56.1]} 28... h6 {[%clk 0:00:29.3]}
29. Rhc3 {[%clk 0:00:55.9]} 29... Ra8 {[%clk 0:00:23.2]} 30. a4 {[%clk
0:00:53.9]} 30... Rb8 {[%clk 0:00:19.8]} 31. Bb5 {[%clk 0:00:53.4]} 31... Bf7
{[%clk 0:00:16.8]} 32. h4 {[%clk 0:00:49.6]} 32... Rd8 {[%clk 0:00:13.8]} 33.
R1c2 {[%clk 0:00:46.5]} 33... Rd1+ {[%clk 0:00:13.1]} 34. Kh2 {[%clk 0:00:46.5]}
34... Rb1 {[%clk 0:00:13.8]} 35. Rxc5 {[%clk 0:00:43.1]} 35... Rxc5 {[%clk
0:00:14.7]} 36. Rxc5 {[%clk 0:00:43.4]} 36... Bxb3 {[%clk 0:00:12.9]} 37. a5
{[%clk 0:00:42.1]} 37... Ra1 {[%clk 0:00:13.4]} 38. a6 {[%clk 0:00:42.2]} 38...
Ba4 {[%clk 0:00:07.5]} 39. Bc4 {[%clk 0:00:35.7]} 39... Bd7 {[%clk 0:00:04.5]}
40. Rc7 {[%clk 0:00:35.3]} 40... Ke8 {[%clk 0:00:03.6]} 41. a7 {[%clk
0:00:30.6]} 41... Kd8 {[%clk 0:00:04.1]} 42. Rb7 {[%clk 0:00:31]} 42... Kc8
{[%clk 0:00:03]} 43. Rb8+ {[%clk 0:00:31.1]} 43... Kc7 {[%clk 0:00:03.5]} 44.
a8=Q {[%clk 0:00:31.2]} 44... Rxa8 {[%clk 0:00:03.7]} 45. Rxa8 {[%clk
0:00:31.7]} 1-0

[Event "Early-Titled-Tuesday-Blitz-July-09-2024"]
[Site "Chess.com"]
[Date "2024.07.09"]
[Round "1"]
[White "MKlose11"]
[Black "JunjiCol"]
[Result "1-0"]
[WhiteElo "2654"]
[BlackElo "2334"]
[TimeControl "180+1"]
[EndTime "8:07:29 PDT"]
[Termination "MKlose11 won by resignation"]

1. e4 {[%clk 0:02:57.1]} 1... e5 {[%clk 0:02:57.5]} 2. Nf3 {[%clk 0:02:55.1]}
2... d5 {[%clk 0:02:57.7]} 3. d4 {[%clk 0:02:56]} 3... dxe4 {[%clk 0:02:57.5]}
4. Nxe5 {[%clk 0:02:54.7]} 4... Bd6 {[%clk 0:02:57.4]} 5. Nc4 {[%clk 0:02:49.6]}
5... Nf6 {[%clk 0:02:56.7]} 6. Nc3 {[%clk 0:02:49.3]} 6... O-O {[%clk
0:02:55.5]} 7. Bg5 {[%clk 0:02:41.3]} 7... Nc6 {[%clk 0:02:49.2]} 8. Be2 {[%clk
0:02:39.8]} 8... Bb4 {[%clk 0:02:46.9]} 9. Be3 {[%clk 0:02:22.7]} 9... Nd5
{[%clk 0:02:41.5]} 10. Qd2 {[%clk 0:02:20.5]} 10... b5 {[%clk 0:02:34]} 11. Ne5
{[%clk 0:02:04.9]} 11... Nxe5 {[%clk 0:02:33.7]} 12. dxe5 {[%clk 0:02:05.2]}
12... Nxc3 {[%clk 0:02:20.2]} 13. bxc3 {[%clk 0:02:04.8]} 13... Qxd2+ {[%clk
0:02:17.4]} 14. Bxd2 {[%clk 0:02:03.8]} 14... Bc5 {[%clk 0:02:14.6]} 15. Bxb5
{[%clk 0:02:01.7]} 15... Rb8 {[%clk 0:02:14.1]} 16. Bc6 {[%clk 0:01:56.7]} 16...
Bf5 {[%clk 0:02:13.8]} 17. O-O {[%clk 0:01:48.6]} 17... Rb2 {[%clk 0:02:06.6]}
18. Rfc1 {[%clk 0:01:41.4]} 18... Rd8 {[%clk 0:01:58.9]} 19. Bg5 {[%clk
0:01:38]} 19... f6 {[%clk 0:01:41]} 20. exf6 {[%clk 0:01:35.5]} 20... gxf6
{[%clk 0:01:41.9]} 21. Bf4 {[%clk 0:01:15.6]} 21... Bd6 {[%clk 0:01:26.9]} 22.
Be3 {[%clk 0:00:39.1]} 22... Ba3 {[%clk 0:01:25.4]} 23. Ba4 {[%clk 0:00:35.3]}
23... Be6 {[%clk 0:01:00]} 24. h3 {[%clk 0:00:28.9]} 24... Rxa2 {[%clk
0:00:56.6]} 25. Rxa2 {[%clk 0:00:27.2]} 25... Bxc1 {[%clk 0:00:56.3]} 26. Bb3
{[%clk 0:00:21.3]} 26... Bxb3 {[%clk 0:00:53.9]} 27. cxb3 {[%clk 0:00:22.2]}
27... Bxe3 {[%clk 0:00:53.7]} 28. fxe3 {[%clk 0:00:23.1]} 28... Rd3 {[%clk
0:00:53.5]} 29. Rxa7 {[%clk 0:00:19.9]} 29... Rxc3 {[%clk 0:00:53.7]} 30. Kf2
{[%clk 0:00:20.1]} 30... Kf7 {[%clk 0:00:54]} 31. b4 {[%clk 0:00:18]} 31... Ke6
{[%clk 0:00:53.2]} 32. g4 {[%clk 0:00:17.1]} 32... Rc4 {[%clk 0:00:50.3]} 33.
Rb7 {[%clk 0:00:17]} 33... Kd6 {[%clk 0:00:47.2]} 34. Kg3 {[%clk 0:00:17.4]}
34... Kc6 {[%clk 0:00:46.9]} 35. Rb8 {[%clk 0:00:17.8]} 35... Rc2 {[%clk
0:00:37.9]} 36. Rh8 {[%clk 0:00:16.2]} 36... Kb5 {[%clk 0:00:36.8]} 37. Rxh7
{[%clk 0:00:15.5]} 37... Kxb4 {[%clk 0:00:37.3]} 38. h4 {[%clk 0:00:16.1]} 38...
c5 {[%clk 0:00:37.5]} 39. h5 {[%clk 0:00:16.5]} 39... c4 {[%clk 0:00:38]} 40. h6
{[%clk 0:00:16.8]} 40... Rc1 {[%clk 0:00:38.3]} 41. Rb7+ {[%clk 0:00:15.9]}
41... Kc3 {[%clk 0:00:38.3]} 42. Rb5 {[%clk 0:00:15]} 42... Rh1 {[%clk
0:00:37.8]} 43. Rh5 {[%clk 0:00:14.5]} 43... Rg1+ {[%clk 0:00:35.8]} 44. Kf4
{[%clk 0:00:14.6]} 44... Kd3 {[%clk 0:00:34.4]} 45. h7 {[%clk 0:00:14.4]} 45...
Rf1+ {[%clk 0:00:33.6]} 46. Kg3 {[%clk 0:00:14.9]} 46... c3 {[%clk 0:00:30.8]}
47. h8=Q {[%clk 0:00:15.3]} 47... c2 {[%clk 0:00:30.4]} 48. Rc5 {[%clk
0:00:15.3]} 48... c1=Q {[%clk 0:00:28.4]} 49. Rxc1 {[%clk 0:00:15.3]} 49... Rxc1
{[%clk 0:00:29.3]} 50. Qxf6 {[%clk 0:00:15.5]} 50... Re1 {[%clk 0:00:27.9]} 51.
Qd4+ {[%clk 0:00:15.5]} 51... Ke2 {[%clk 0:00:27]} 52. Qxe4 {[%clk 0:00:15.9]}
52... Rg1+ {[%clk 0:00:27.2]} 53. Qg2+ {[%clk 0:00:15.7]} 53... Rxg2+ {[%clk
0:00:25.8]} 54. Kxg2 {[%clk 0:00:16.6]} 54... Kxe3 {[%clk 0:00:26.5]} 55. g5
{[%clk 0:00:16.9]} 1-0

[Event "Early-Titled-Tuesday-Blitz-July-09-2024"]
[Site "Chess.com"]
[Date "2024.07.09"]
[Round "1"]
[White "SHIVACalypso"]
[Black "rasmussvane"]
[Result "0-1"]
[WhiteElo "2499"]
[BlackElo "2911"]
[TimeControl "180+1"]
[EndTime "8:07:33 PDT"]
[Termination "rasmussvane won on time"]

1. Nf3 {[%clk 0:02:58.8]} 1... d5 {[%clk 0:02:59.6]} 2. d4 {[%clk 0:02:58.3]}
2... e6 {[%clk 0:02:56]} 3. g3 {[%clk 0:02:56.3]} 3... Nf6 {[%clk 0:02:54.9]} 4.
Bg2 {[%clk 0:02:56.3]} 4... b5 {[%clk 0:02:53.7]} 5. O-O {[%clk 0:02:55.6]} 5...
Bb7 {[%clk 0:02:52.8]} 6. a4 {[%clk 0:02:42.7]} 6... b4 {[%clk 0:02:52.7]} 7.
Ne5 {[%clk 0:02:34.3]} 7... Nbd7 {[%clk 0:02:50]} 8. Nxd7 {[%clk 0:02:33.5]}
8... Qxd7 {[%clk 0:02:49.1]} 9. Bf4 {[%clk 0:02:27.3]} 9... Bd6 {[%clk
0:02:47.3]} 10. Bxd6 {[%clk 0:02:25.2]} 10... cxd6 {[%clk 0:02:45.9]} 11. c3
{[%clk 0:02:22.1]} 11... bxc3 {[%clk 0:02:41.1]} 12. Nxc3 {[%clk 0:02:23]} 12...
a5 {[%clk 0:02:40.4]} 13. Re1 {[%clk 0:02:21]} 13... O-O {[%clk 0:02:39.5]} 14.
Rc1 {[%clk 0:02:19.8]} 14... Rab8 {[%clk 0:02:34.5]} 15. Nb5 {[%clk 0:02:19.4]}
15... Bc6 {[%clk 0:02:29.2]} 16. Qd2 {[%clk 0:02:00.8]} 16... Bxb5 {[%clk
0:02:28]} 17. axb5 {[%clk 0:02:01.5]} 17... Rxb5 {[%clk 0:02:22.3]} 18. Rc2
{[%clk 0:02:01.1]} 18... Rfb8 {[%clk 0:02:16.8]} 19. Rec1 {[%clk 0:02:00.4]}
19... h6 {[%clk 0:02:12.1]} 20. Rc7 {[%clk 0:01:36.9]} 20... Qd8 {[%clk
0:02:08.2]} 21. e3 {[%clk 0:01:22.5]} 21... a4 {[%clk 0:01:53.7]} 22. Qc2 {[%clk
0:01:09.1]} 22... Rb4 {[%clk 0:01:45.6]} 23. Qc6 {[%clk 0:00:57.7]} 23... Rxb2
{[%clk 0:01:35.3]} 24. Qxa4 {[%clk 0:00:55.2]} 24... Rb1 {[%clk 0:01:19.2]} 25.
Qa7 {[%clk 0:00:32.1]} 25... Rxc1+ {[%clk 0:01:13.8]} 26. Rxc1 {[%clk 0:00:33]}
26... Rc8 {[%clk 0:01:13.3]} 27. Rb1 {[%clk 0:00:30.8]} 27... Ra8 {[%clk
0:00:50.1]} 28. Qb7 {[%clk 0:00:28.5]} 28... g6 {[%clk 0:00:49.7]} 29. h3 {[%clk
0:00:28.2]} 29... Kg7 {[%clk 0:00:49.3]} 30. Rc1 {[%clk 0:00:24.4]} 30... Rb8
{[%clk 0:00:48.1]} 31. Qa7 {[%clk 0:00:24.2]} 31... Rc8 {[%clk 0:00:45.4]} 32.
Rb1 {[%clk 0:00:22.7]} 32... Rc7 {[%clk 0:00:43.1]} 33. Qa6 {[%clk 0:00:18.5]}
33... Qd7 {[%clk 0:00:37.7]} 34. Bf3 {[%clk 0:00:16]} 34... e5 {[%clk
0:00:35.2]} 35. Rb6 {[%clk 0:00:13.8]} 35... Qxh3 {[%clk 0:00:32.6]} 36. Qa3
{[%clk 0:00:09.9]} 36... e4 {[%clk 0:00:18.4]} 37. Bg2 {[%clk 0:00:10.2]} 37...
Qf5 {[%clk 0:00:18.7]} 38. Rxd6 {[%clk 0:00:07.7]} 38... Ng4 {[%clk 0:00:17.6]}
39. Qa2 {[%clk 0:00:06.1]} 39... Rc1+ {[%clk 0:00:17.2]} 40. Bf1 {[%clk
0:00:06.3]} 40... Nxe3 {[%clk 0:00:17]} 41. Rxd5 {[%clk 0:00:01.1]} 41... Rxf1+
{[%clk 0:00:14.2]} 0-1

[Event "Early-Titled-Tuesday-Blitz-July-09-2024"]
[Site "Chess.com"]
[Date "2024.07.09"]
[Round "1"]
[White "Happy1712Drummer"]
[Black "K_A_S_T_O_R"]
[Result "0-1"]
[WhiteElo "2469"]
[BlackElo "2859"]
[TimeControl "180+1"]
[EndTime "8:07:35 PDT"]
[Termination "K_A_S_T_O_R won by resignation"]

1. e4 {[%clk 0:03:00.4]} 1... c5 {[%clk 0:02:59.7]} 2. Nf3 {[%clk 0:02:59.8]}
2... d6 {[%clk 0:02:59.7]} 3. Bb5+ {[%clk 0:02:59.2]} 3... Nd7 {[%clk
0:02:59.1]} 4. O-O {[%clk 0:02:59]} 4... a6 {[%clk 0:02:57.4]} 5. Bxd7+ {[%clk
0:02:58.8]} 5... Bxd7 {[%clk 0:02:57.4]} 6. c3 {[%clk 0:02:59.5]} 6... Nf6
{[%clk 0:02:55.6]} 7. Re1 {[%clk 0:02:59.9]} 7... Bc6 {[%clk 0:02:45.5]} 8. d4
{[%clk 0:02:57.7]} 8... cxd4 {[%clk 0:02:33.2]} 9. cxd4 {[%clk 0:02:43.2]} 9...
Bxe4 {[%clk 0:02:28.6]} 10. Nc3 {[%clk 0:02:39.7]} 10... d5 {[%clk 0:02:27.4]}
11. Bg5 {[%clk 0:02:35.3]} 11... e6 {[%clk 0:02:25.4]} 12. Nxe4 {[%clk
0:02:34.5]} 12... dxe4 {[%clk 0:02:24.8]} 13. Rxe4 {[%clk 0:02:35.4]} 13... Be7
{[%clk 0:02:19.2]} 14. Bxf6 {[%clk 0:02:35.6]} 14... gxf6 {[%clk 0:02:07.1]} 15.
d5 {[%clk 0:02:33.2]} 15... e5 {[%clk 0:01:19.1]} 16. Nh4 {[%clk 0:02:05.7]}
16... Qd7 {[%clk 0:01:18.9]} 17. Rc1 {[%clk 0:01:59.4]} 17... Rd8 {[%clk
0:01:16.9]} 18. Qh5 {[%clk 0:00:59.8]} 18... Qxd5 {[%clk 0:01:14.3]} 19. Rce1
{[%clk 0:01:00.3]} 19... Rg8 {[%clk 0:00:35.1]} 20. h3 {[%clk 0:00:45.7]} 20...
Rg5 {[%clk 0:00:27.9]} 21. Qxh7 {[%clk 0:00:45.7]} 21... Kd7 {[%clk 0:00:27.1]}
22. Nf3 {[%clk 0:00:38.4]} 22... Rg6 {[%clk 0:00:20.1]} 23. h4 {[%clk 0:00:34]}
23... Kc8 {[%clk 0:00:19.5]} 24. h5 {[%clk 0:00:33.5]} 24... Rgg8 {[%clk
0:00:20]} 25. Qf5+ {[%clk 0:00:29.6]} 25... Qe6 {[%clk 0:00:20.5]} 26. Nh4
{[%clk 0:00:25.6]} 26... Rg5 {[%clk 0:00:19.1]} 27. Qf3 {[%clk 0:00:25.3]} 27...
Rdg8 {[%clk 0:00:17.4]} 28. g3 {[%clk 0:00:24.9]} 28... Bd6 {[%clk 0:00:17.3]}
29. Rd1 {[%clk 0:00:21.7]} 29... f5 {[%clk 0:00:16.8]} 30. Re2 {[%clk 0:00:12]}
30... e4 {[%clk 0:00:16.5]} 31. Qc3+ {[%clk 0:00:12]} 31... Kb8 {[%clk
0:00:14.5]} 32. Ng2 {[%clk 0:00:12]} 32... Bxg3 {[%clk 0:00:13.2]} 33. fxg3
{[%clk 0:00:11.9]} 33... Rxg3 {[%clk 0:00:14]} 34. Qc5 {[%clk 0:00:08.4]} 34...
f4 {[%clk 0:00:13.8]} 35. Red2 {[%clk 0:00:05.3]} 35... Qf6 {[%clk 0:00:11.3]}
36. Rd6 {[%clk 0:00:02.4]} 36... Rxg2+ {[%clk 0:00:10.2]} 37. Kf1 {[%clk
0:00:02.1]} 37... Rg1+ {[%clk 0:00:10.4]} 38. Qxg1 {[%clk 0:00:01.7]} 38...
Rxg1+ {[%clk 0:00:10.9]} 39. Kxg1 {[%clk 0:00:02.6]} 39... Qg5+ {[%clk
0:00:11.1]} 40. Kf1 {[%clk 0:00:03.5]} 40... Qxh5 {[%clk 0:00:11.5]} 41. Rd8+
{[%clk 0:00:04]} 41... Ka7 {[%clk 0:00:10.8]} 42. R8d4 {[%clk 0:00:04.9]} 42...
Qf3+ {[%clk 0:00:10.9]} 43. Ke1 {[%clk 0:00:04.7]} 43... e3 {[%clk 0:00:11.8]}
44. R1d3 {[%clk 0:00:03.4]} 44... Qf2+ {[%clk 0:00:11.3]} 0-1

[Event "Early-Titled-Tuesday-Blitz-July-09-2024"]
[Site "Chess.com"]
[Date "2024.07.09"]
[Round "1"]
[White "Kombinator01"]
[Black "woodpusher52"]
[Result "0-1"]
[WhiteElo "2417"]
[BlackElo "2752"]
[TimeControl "180+1"]
[EndTime "8:07:35 PDT"]
[Termination "woodpusher52 won by checkmate"]

1. e4 {[%clk 0:03:00.9]} 1... c5 {[%clk 0:02:54.2]} 2. Nf3 {[%clk 0:02:59.1]}
2... Nf6 {[%clk 0:02:52.6]} 3. e5 {[%clk 0:02:57.7]} 3... Nd5 {[%clk 0:02:53.1]}
4. b3 {[%clk 0:02:53.6]} 4... Nc6 {[%clk 0:02:49.2]} 5. Bb2 {[%clk 0:02:52.1]}
5... e6 {[%clk 0:02:49.1]} 6. Nc3 {[%clk 0:02:48.8]} 6... Nf4 {[%clk 0:02:45]}
7. Ne4 {[%clk 0:02:37.1]} 7... Qc7 {[%clk 0:02:36.4]} 8. Ng3 {[%clk 0:02:22.6]}
8... Be7 {[%clk 0:02:27.4]} 9. d3 {[%clk 0:02:11.1]} 9... Ng6 {[%clk 0:02:14.2]}
10. Qe2 {[%clk 0:02:06.1]} 10... Qa5+ {[%clk 0:02:07.4]} 11. c3 {[%clk
0:02:02.8]} 11... Qc7 {[%clk 0:02:07.3]} 12. Qe4 {[%clk 0:01:53.3]} 12... f5
{[%clk 0:01:35.3]} 13. exf6 {[%clk 0:01:50.7]} 13... Bxf6 {[%clk 0:01:36]} 14.
h4 {[%clk 0:01:46.6]} 14... d5 {[%clk 0:01:35.5]} 15. Qe3 {[%clk 0:01:43.2]}
15... O-O {[%clk 0:01:32.1]} 16. Qxc5 {[%clk 0:01:38.2]} 16... d4 {[%clk
0:00:53]} 17. Nxd4 {[%clk 0:01:27.5]} 17... Be7 {[%clk 0:00:22]} 18. Qc4 {[%clk
0:01:06.7]} 18... Nge5 {[%clk 0:00:13]} 19. Qa4 {[%clk 0:01:05.2]} 19... Nxd4
{[%clk 0:00:10.4]} 20. Qxd4 {[%clk 0:01:04.1]} 20... Bc5 {[%clk 0:00:10.5]} 21.
Qe4 {[%clk 0:00:49.2]} 21... Bxf2+ {[%clk 0:00:10.4]} 22. Kd1 {[%clk 0:00:49]}
22... Bxg3 {[%clk 0:00:11.3]} 23. d4 {[%clk 0:00:49.4]} 23... Nc6 {[%clk
0:00:09.8]} 24. Bd3 {[%clk 0:00:49.3]} 24... g6 {[%clk 0:00:06.5]} 25. h5 {[%clk
0:00:49.7]} 25... Rf4 {[%clk 0:00:04.8]} 26. Qe2 {[%clk 0:00:46.2]} 26... Rf2
{[%clk 0:00:04.7]} 27. Qg4 {[%clk 0:00:41]} 27... Qf4 {[%clk 0:00:04.3]} 28.
Qxf4 {[%clk 0:00:41]} 28... Bxf4 {[%clk 0:00:04.4]} 29. Bc1 {[%clk 0:00:35.2]}
29... Bxc1 {[%clk 0:00:04.5]} 30. Kxc1 {[%clk 0:00:36.1]} 30... Ne7 {[%clk
0:00:04.7]} 31. g4 {[%clk 0:00:33.2]} 31... Bd7 {[%clk 0:00:04.6]} 32. Rb1
{[%clk 0:00:28.9]} 32... Raf8 {[%clk 0:00:04.8]} 33. Rb2 {[%clk 0:00:29.1]}
33... Rxb2 {[%clk 0:00:04.7]} 34. Kxb2 {[%clk 0:00:30]} 34... Rf2+ {[%clk
0:00:05.2]} 35. Ka3 {[%clk 0:00:30.6]} 35... Kg7 {[%clk 0:00:05.3]} 36. h6+
{[%clk 0:00:30.4]} 36... Kf7 {[%clk 0:00:05.9]} 37. c4 {[%clk 0:00:29.6]} 37...
Bc6 {[%clk 0:00:06.3]} 38. Re1 {[%clk 0:00:29.6]} 38... Rf3 {[%clk 0:00:06.9]}
39. Bb1 {[%clk 0:00:28.8]} 39... Rf4 {[%clk 0:00:07.5]} 40. g5 {[%clk
0:00:28.6]} 40... a6 {[%clk 0:00:08]} 41. Kb4 {[%clk 0:00:28.4]} 41... Rxd4
{[%clk 0:00:08.3]} 42. Kc5 {[%clk 0:00:28.6]} 42... Rf4 {[%clk 0:00:08.7]} 43.
a4 {[%clk 0:00:27.6]} 43... Rg4 {[%clk 0:00:09.2]} 44. Rf1+ {[%clk 0:00:27.5]}
44... Ke8 {[%clk 0:00:09.8]} 45. Kd6 {[%clk 0:00:24.2]} 45... Rxg5 {[%clk
0:00:10.3]} 46. Kxe6 {[%clk 0:00:24.5]} 46... Bd7+ {[%clk 0:00:10]} 47. Kf6
{[%clk 0:00:23.9]} 47... Rh5 {[%clk 0:00:09.8]} 48. Kg7 {[%clk 0:00:24.1]} 48...
Bf5 {[%clk 0:00:08.2]} 49. Bxf5 {[%clk 0:00:22.6]} 49... gxf5 {[%clk 0:00:08.7]}
50. Kxh7 {[%clk 0:00:22.4]} 50... Kf7 {[%clk 0:00:09.2]} 51. c5 {[%clk
0:00:19.8]} 51... Ng8 {[%clk 0:00:09.7]} 52. c6 {[%clk 0:00:17.1]} 52... Rxh6#
{[%clk 0:00:09.7]} 0-1

[Event "Early-Titled-Tuesday-Blitz-July-09-2024"]
[Site "Chess.com"]
[Date "2024.07.09"]
[Round "1"]
[White "Zq1"]
[Black "Arteler"]
[Result "0-1"]
[WhiteElo "2576"]
[BlackElo "2257"]
[TimeControl "180+1"]
[EndTime "8:07:35 PDT"]
[Termination "Arteler won on time"]

1. d4 {[%clk 0:02:56.1]} 1... d5 {[%clk 0:02:54.2]} 2. c4 {[%clk 0:02:55.8]}
2... c6 {[%clk 0:02:54.4]} 3. e3 {[%clk 0:02:54.3]} 3... Nf6 {[%clk 0:02:54]} 4.
Nc3 {[%clk 0:02:54.2]} 4... a6 {[%clk 0:02:50.6]} 5. a4 {[%clk 0:02:50.3]} 5...
Bf5 {[%clk 0:02:49.5]} 6. Nf3 {[%clk 0:02:49.4]} 6... e6 {[%clk 0:02:49.6]} 7.
Bd3 {[%clk 0:02:49.2]} 7... Bxd3 {[%clk 0:02:30.9]} 8. Qxd3 {[%clk 0:02:48.7]}
8... Nbd7 {[%clk 0:02:28.6]} 9. O-O {[%clk 0:02:48.1]} 9... a5 {[%clk
0:02:16.4]} 10. e4 {[%clk 0:02:43.7]} 10... dxe4 {[%clk 0:02:11.8]} 11. Nxe4
{[%clk 0:02:42.9]} 11... Nxe4 {[%clk 0:01:58.5]} 12. Qxe4 {[%clk 0:02:42.5]}
12... Nf6 {[%clk 0:01:58.8]} 13. Qe2 {[%clk 0:02:35.9]} 13... Be7 {[%clk
0:01:56.7]} 14. Bf4 {[%clk 0:02:33.2]} 14... O-O {[%clk 0:01:56]} 15. Rad1
{[%clk 0:02:32.5]} 15... Qb6 {[%clk 0:01:51.8]} 16. Ne5 {[%clk 0:02:28.2]} 16...
Qb4 {[%clk 0:01:48.9]} 17. Qc2 {[%clk 0:02:24.4]} 17... Rfd8 {[%clk 0:01:38.3]}
18. Be3 {[%clk 0:02:09.5]} 18... Nd7 {[%clk 0:01:34.3]} 19. Nd3 {[%clk
0:02:04.1]} 19... Qd6 {[%clk 0:01:28.2]} 20. c5 {[%clk 0:02:00.1]} 20... Qc7
{[%clk 0:01:09.6]} 21. Bf4 {[%clk 0:01:56.5]} 21... Qc8 {[%clk 0:01:09.8]} 22.
b3 {[%clk 0:01:48.8]} 22... Nf6 {[%clk 0:01:10.1]} 23. Nb2 {[%clk 0:01:47.5]}
23... Nd5 {[%clk 0:01:10.2]} 24. Bg3 {[%clk 0:01:47.2]} 24... Nb4 {[%clk
0:01:01.3]} 25. Qb1 {[%clk 0:01:43]} 25... Bf6 {[%clk 0:01:01.1]} 26. Nc4 {[%clk
0:01:41.3]} 26... Nd5 {[%clk 0:00:52.6]} 27. Qc1 {[%clk 0:01:29.9]} 27... Qd7
{[%clk 0:00:51.5]} 28. Rfe1 {[%clk 0:01:21.3]} 28... Ra6 {[%clk 0:00:51.2]} 29.
h3 {[%clk 0:01:12.2]} 29... b5 {[%clk 0:00:50.2]} 30. axb5 {[%clk 0:00:48.6]}
30... cxb5 {[%clk 0:00:50.7]} 31. Nd6 {[%clk 0:00:48.2]} 31... a4 {[%clk
0:00:45.2]} 32. bxa4 {[%clk 0:00:47.1]} 32... bxa4 {[%clk 0:00:45.6]} 33. Qa3
{[%clk 0:00:44.2]} 33... h5 {[%clk 0:00:41.5]} 34. Re2 {[%clk 0:00:41.4]} 34...
h4 {[%clk 0:00:41.6]} 35. Bh2 {[%clk 0:00:40.9]} 35... Rb8 {[%clk 0:00:37]} 36.
Rc2 {[%clk 0:00:38.5]} 36... Rb3 {[%clk 0:00:37.2]} 37. Qc1 {[%clk 0:00:33.5]}
37... Qc6 {[%clk 0:00:34.9]} 38. Nc4 {[%clk 0:00:14.9]} 38... a3 {[%clk
0:00:33.6]} 39. Be5 {[%clk 0:00:13.5]} 39... a2 {[%clk 0:00:31.8]} 40. Qa1
{[%clk 0:00:11.6]} 40... Bxe5 {[%clk 0:00:29.8]} 41. Nxe5 {[%clk 0:00:07.3]}
41... Qa4 {[%clk 0:00:27.9]} 42. Rdc1 {[%clk 0:00:05.5]} 42... Nb4 {[%clk
0:00:27.8]} 43. Rc4 {[%clk 0:00:05.1]} 43... Qa3 {[%clk 0:00:27.3]} 44. c6
{[%clk 0:00:04]} 44... Ra8 {[%clk 0:00:21.7]} 45. c7 {[%clk 0:00:03.7]} 45...
Rc8 {[%clk 0:00:22.4]} 46. Nd7 {[%clk 0:00:03.5]} 46... Nd3 {[%clk 0:00:21.2]}
47. Rd1 {[%clk 0:00:01.8]} 47... Qb2 {[%clk 0:00:18.2]} 0-1